[Event "FIDE Candidates 2024"]
[Site "Toronto"]
[Date "2024.04.14"]
[Round "9.2"]
[White "Gukesh D"]
[Black "Praggnanandhaa R"]
[Result "1/2-1/2"]
[ECO "C77"]
[WhiteElo "2743"]
[BlackElo "2747"]
[Annotator "TA"]
[PlyCount "81"]
[EventDate "2024.04.02"]
[EventType "tourn"]
[EventCountry "CAN"]
[SourceTitle "playchess.com"]
[Source "ChessBase"]
[SourceQuality "1"]
[TimeControl "40/7200:1800+30"]

{[%evp 11,81,9,14,0,23,6,8,0,20,6,17,14,39,14,22,20,41,18,31,10,20,0,22,3,20,20,20,28,30,0,0,0,0,0,20,24,33,14,25,27,24,31,22,25,43,25,41,28,32,30,46,33,36,40,62,25,39,21,34,17,15,17,14,3,10,10,8,0,0,0,0,0]} 1. e4 {[%emt 0:00:05]} e5 {[%emt 0:01:02]} 2. Nf3 {[%emt 0:00:10]} Nc6 {[%emt 0:00:06]} 3. Bb5 {[%emt 0:00:05]} a6 {[%emt 0:00:22]} 4. Ba4 {[%emt 0:00:05]} Nf6 {[%emt 0:00:06]} 5. d3 {[%emt 0:00:55]} Bc5 {[%emt 0:00:11]} 6. Bxc6 {[%emt 0:07:09]} dxc6 {[%emt 0:00:36]} 7. c3 {[%emt 0:02:08]} (7. Nxe5 $2 {too greedy.} Qd4 8. Be3 Qxe5 $19) 7... Qe7 {[%emt 0:05:34]} 8. h3 {[%emt 0:07:40]} Bd6 {[%emt 0:07:51]} 9. Nbd2 {[%emt 0:00:42]} a5 {[%emt 0:05:58]} 10. O-O {[%emt 0:07:01]} Nd7 {[%emt 0:03:12]} 11. Nc4 {[%emt 0:07:20]} b6 {[%emt 0:03:14]} 12. Nxd6+ {[%emt 0:04:15]} cxd6 {[%emt 0:05:52]} 13. Bg5 {[%emt 0:00:34]} Nf6 {[%emt 0:13:46]} 14. Nd2 {[%emt 0:05:56]} h6 {[%emt 0:05:08]} 15. Be3 {[%emt 0:01:41][%cal Of2f4]} Ba6 {[%emt 0:02:14]} 16. Qc2 {[%emt 0:09:31]} Nd7 {[%emt 0:02:23][%cal Bf6d7,Bd7e5,Be5g6][%mdl 32]} 17. f4 {[%emt 0:01:01]} exf4 {[%emt 0:04:33]} 18. Bxf4 {[%emt 0:02:01]} O-O {[%emt 0:01:18]} 19. Rae1 {[%emt 0:01:12]} Ne5 {[%emt 0:04:16]} 20. c4 {[%emt 0:00:22]} b5 {[%emt 0:01:06]} 21. b3 {[%emt 0:01:34]} c5 {[%emt 0:05:13]} 22. Nf3 {[%emt 0:07:16][%cal Bd2f3,Bf3h2,Bh2g4,Bg4e3,Be3d5][%mdl 32]} Ng6 {[%emt 0:01:31]} 23. Bg3 {[%emt 0:00:59]} Qd7 {[%emt 0:01:46]} 24. Nh2 {[%emt 0:08:21]} a4 {[%emt 0:04:05]} 25. Ng4 {[%emt 0:00:28][%cal Of1f6]} axb3 {[%emt 0:00:14]} 26. axb3 {[%emt 0:00:16][%cal Of1f6]} bxc4 {[%emt 0:01:24]} 27. bxc4 {[%emt 0:00:59][%cal Of1f6]} Bb7 {[%emt 0:00:41][%cal Ba6b7,Bb7c8,Bc8e6][%mdl 32]} 28. Rb1 {[%emt 0:08:48]} Ra6 {[%emt 0:02:54] Against Rb6} 29. Qf2 {[%emt 0:00:39]} Bc8 {[%emt 0:05:38]} 30. Ne3 {[%emt 0:02:40]} Qa7 {[%emt 0:13:12]} 31. Rb2 {[%emt 0:03:12]} Rd8 {[%emt 0:03:15]} 32. Kh2 {[%emt 0:03:39]} Ra3 {[%emt 0:01:24]} 33. Qe2 {[%emt 0:05:42]} Be6 {[%emt 0:00:59]} 34. Nd5 {[%emt 0:04:09]} Ra1 {[%emt 0:03:14]} 35. Rfb1 {[%emt 0:02:44]} Rxb1 {[%emt 0:00:06] The position is equal.} 36. Rxb1 {[%emt 0:00:01]} f6 {[%emt 0:01:12]} 37. Rb3 {[%emt 0:01:20]} Ne5 {[%emt 0:01:06]} 38. Qb2 {[%emt 0:00:02]} Bxd5 {[%emt 0:00:32]} 39. exd5 {[%emt 0:00:30]} Qe7 {[%emt 0:00:17]} 40. Rb7 {[%emt 0:00:00]} Rd7 {[%emt 0:00:00]} ({But not} 40... Nxd3 $2 41. Qb1 (41. Qb6 Qf8 $11) 41... Qe2 42. Qb6 $18) 41. Rb8+ {[%emt 0:09:57] Weighted Error Value: White=0.11 (very precise) /Black=0.08 (flawless) .  Inaccurate:     	White=2     	---        OK:         	White=10    	Black=12} 1/2-1/2

[Event "FIDE Candidates 2024"]
[Site "Toronto"]
[Date "2024.04.14"]
[Round "9.3"]
[White "Firouzja, Alireza"]
[Black "Nepomniachtchi, Ian"]
[Result "1/2-1/2"]
[ECO "A07"]
[WhiteElo "2760"]
[BlackElo "2758"]
[Annotator "TA"]
[PlyCount "88"]
[EventDate "2024.04.02"]
[EventType "tourn"]
[EventCountry "CAN"]
[SourceTitle "playchess.com"]
[Source "ChessBase"]
[SourceQuality "1"]
[TimeControl "40/7200:1800+30"]

{[%evp 15,88,6,9,-4,12,2,26,14,25,22,41,37,33,34,39,40,26,38,39,37,36,44,76,81,95,84,97,60,52,62,60,53,54,45,66,54,44,33,68,68,107,77,80,80,76,55,55,55,55,55,55,55,55,55,55,55,55,55,55,55,55,55,55,55,55,55,55,55,55,55,55,55,55,55,55]} 1. Nf3 {[%emt 0:00:06]} d5 {[%emt 0:00:16]} 2. b3 {[%emt 0:00:09]} Nf6 {[%emt 0:00:47]} 3. Bb2 {[%emt 0:00:13]} Bf5 {[%emt 0:00:08]} 4. g3 {[%emt 0:00:33]} c5 {[%emt 0:01:08]} 5. Bg2 {[%emt 0:07:07]} Nc6 {[%emt 0:01:40]} 6. O-O {[%emt 0:05:26]} e6 {[%emt 0:00:30]} 7. d3 {[%emt 0:06:45]} Be7 {[%emt 0:00:56]} 8. Nbd2 {[%emt 0:01:27]} O-O {[%emt 0:01:34]} 9. Re1 {[%emt 0:05:03]} h6 {[%emt 0:02:57]} 10. e4 {[%emt 0:00:32]} Bh7 {[%emt 0:00:32]} 11. Ne5 {[%emt 0:05:10] White has an edge.} Nxe5 {[%emt 0:15:07]} 12. Bxe5 {[%emt 0:01:03]} Nd7 {[%emt 0:02:48]} 13. Bb2 {[%emt 0:00:38]} (13. exd5 Nxe5 14. Rxe5 Bf6 $15) 13... d4 {[%emt 0:00:20]} 14. a4 {[%emt 0:16:56]} e5 {[%emt 0:02:31]} 15. f4 {[%emt 0:06:48]} Qc7 {[%emt 0:01:06]} 16. Qf3 {[%emt 0:04:13]} b6 {[%emt 0:07:40]} 17. Bh3 {[%emt 0:16:19]} Rae8 {[%emt 0:01:47]} 18. Nc4 {[%emt 0:00:50]} Bd6 {[%emt 0:01:05]} 19. Bc1 {[%emt 0:02:06] White has more active pieces.} Qc6 {[%emt 0:03:31]} 20. Nxd6 {[%emt 0:07:41]} Qxd6 {[%emt 0:01:30]} 21. Bxd7 {[%emt 0:00:02]} Qxd7 {[%emt 0:00:10]} 22. f5 {[%emt 0:00:01]} f6 {[%emt 0:04:27]} 23. g4 {[%emt 0:00:30]} Kf7 {[%emt 0:00:51][%cal Bg8f7,Bf7e7,Be7d6,Bd6c7][%mdl 32]} 24. h4 {[%emt 0:00:13]} Ke7 {[%emt 0:15:31]} 25. Re2 {[%emt 0:00:10]} Kd6 {[%emt 0:03:21]} 26. Bd2 {[%emt 0:02:18]} a5 {[%emt 0:01:32]} 27. Rh2 {[%emt 0:01:53]} (27. Rf1 {with more complications.} Rh8 28. g5 Bg8 29. g6) 27... Kc7 {[%emt 0:02:16]} 28. Rf1 {[%emt 0:01:40]} Rh8 {[%emt 0:01:48]} 29. g5 {[%emt 0:05:30]} Bg8 {[%emt 0:00:32]} 30. gxf6 {[%emt 0:03:23]} gxf6 {[%emt 0:00:07] White is slightly better.} 31. h5 {[%emt 0:00:22]} Bf7 {[%emt 0:01:14]} 32. Rg2 $1 {[%emt 0:01:38]} Reg8 {[%emt 0:00:04] [#]} 33. Rg6 $1 {[%emt 0:01:12]} Bxg6 {[%emt 0:00:05]} 34. fxg6 {[%emt 0:00:08][%cal Of3f5] aiming for Qf5!} Re8 $1 {[%emt 0:00:11]} 35. Be1 {[%emt 0:06:03][%cal Oe1h4][%mdl 1024] Black must now prevent Bh4! White has compensation.} (35. Qxf6 Rhf8 36. Qh4 (36. Qxf8 $2 {loses.} Qg4+ 37. Kh2 Qxh5+ 38. Kg3 Qxg6+ 39. Kh4 Rxf8 $19) 36... Rxf1+ 37. Kxf1 Rf8+ 38. Ke2 Qg7 $16) 35... Re6 {[%emt 0:00:47]} 36. Bh4 {[%emt 0:00:22]} Rf8 {[%emt 0:00:58]} 37. Qg4 {[%emt 0:00:16][%cal Oh4f6] [#] And now Bxf6! would win.} Qe7 {[%emt 0:00:53]} 38. Kh2 {[%emt 0:01:19] Threatens to win with Rg1.} Kd6 $1 {[%emt 0:04:49]} 39. Rf5 {[%emt 0:01:10]} Qg7 {[%emt 0:01:03]} 40. Qf3 {[%emt 0:00:00]} Kc7 {[%emt 0:00:00]} 41. Qf2 {[%emt 0:03:30]} Kb7 {[%emt 0:01:57]} 42. Qg2 {[%emt 0:02:48]} Rc6 {[%emt 0:01:00]} 43. Qg4 {[%emt 0:00:30]} Ka6 {[%emt 0:01:03]} 44. Rf1 {[%emt 0:02:04]} Rd6 {[%emt 0:00:34] Weighted Error Value: White=0.05 (flawless) /Black=0.06 (flawless) .  Inaccurate:     	White=1     	Black=3      OK:         	White=16    	Black=12     Best:        	---       	Black=1      Strong:       	White=1     	Black=2      Brilliant:      	White=1     	---} 1/2-1/2

[Event "FIDE Candidates 2024"]
[Site "Toronto"]
[Date "2024.04.15"]
[Round "10.1"]
[White "Praggnanandhaa R"]
[Black "Vidit, Santosh Gujrathi"]
[Result "1/2-1/2"]
[ECO "C65"]
[WhiteElo "2747"]
[BlackElo "2727"]
[Annotator "TA"]
[PlyCount "78"]
[EventDate "2024.04.02"]
[EventType "tourn"]
[EventCountry "CAN"]
[SourceTitle "playchess.com"]
[Source "ChessBase"]
[SourceQuality "1"]
[TimeControl "40/7200:1800+30"]

{[%evp 9,78,24,33,14,10,0,4,6,0,0,10,14,12,1,9,10,8,0,7,0,0,0,0,0,0,0,0,0,0,0,0,0,0,0,2,0,0,0,0,-22,-25,-29,-22,-22,-22,-22,-22,-22,-12,-12,0,-4,0,0,0,0,0,0,0,0,0,0,0,0,0,0,0,0,0,0,0]} 1. e4 {[%emt 0:00:00]} e5 {[%emt 0:00:58]} 2. Nf3 {[%emt 0:00:32]} Nc6 {[%emt 0:00:15]} 3. Bb5 {[%emt 0:00:09]} Nf6 {[%emt 0:00:34][%cal Bg8f6,Bf6d7,Bd7c5][%mdl 32]} 4. d3 {[%emt 0:00:10]} Bc5 {[%emt 0:00:15]} 5. Bxc6 {[%emt 0:00:09]} dxc6 {[%emt 0:00:07]} 6. Qe2 {[%emt 0:00:06]} (6. Nxe5 $2 {loses.} Qd4 7. Qe2 Qxe5 $19) 6... Nd7 {[%emt 0:04:55]} 7. Be3 {[%emt 0:00:46]} Qe7 {[%emt 0:03:29]} 8. Nc3 {[%emt 0:00:40]} Bd6 {[%emt 0:10:36]} 9. Nd2 {[%emt 0:00:14]} Nc5 {[%emt 0:08:58]} 10. Nc4 {[%emt 0:05:30]} Ne6 {[%emt 0:00:07] Prevents f4} 11. Qd2 {[%emt 0:11:12]} f6 {[%emt 0:05:44]} 12. Nxd6+ {[%emt 0:05:05]} Qxd6 {[%emt 0:00:33]} 13. Ne2 {[%emt 0:03:47]} b6 {[%emt 0:13:36]} 14. f4 {[%emt 0:05:50]} exf4 {[%emt 0:01:12]} 15. Nxf4 {[%emt 0:00:12]} c5 {[%emt 0:02:05]} 16. Qf2 {[%emt 0:21:37]} Bb7 {[%emt 0:04:30][%cal Oc5c4]} 17. Nxe6 {[%emt 0:06:35]} Qxe6 {[%emt 0:01:57]} 18. b3 {[%emt 0:00:07]} O-O-O {[%emt 0:04:49]} 19. O-O {[%emt 0:02:28]} Kb8 {[%emt 0:03:01]} 20. Rae1 {[%emt 0:06:09]} Rhf8 {[%emt 0:02:36]} 21. Qf5 {[%emt 0:02:05]} Qd6 {[%emt 0:04:25]} 22. Qh3 {[%emt 0:02:33]} (22. Qxh7 Rh8 23. Qf5 Qxh2+ (23... Rxh2 $2 {too greedy.} 24. Bf4 $18) 24. Kf2 g6) 22... h6 {[%emt 0:04:11]} 23. Rf2 {[%emt 0:06:15]} Bc8 {[%emt 0:03:52]} 24. Qg3 {[%emt 0:05:50]} Qxg3 {[%emt 0:01:39]} 25. hxg3 {[%emt 0:00:02]} Be6 {[%emt 0:04:33]} 26. a4 {[%emt 0:05:12] The position is equal.} a5 {[%emt 0:00:23]} 27. Bd2 {[%emt 0:00:11]} Rfe8 {[%emt 0:00:56]} 28. Bc3 {[%emt 0:00:27]} Rd7 {[%emt 0:00:41]} 29. Rf4 {[%emt 0:00:14]} Kb7 {[%emt 0:01:33]} 30. Kf2 {[%emt 0:02:25]} Rde7 {[%emt 0:01:08]} 31. g4 {[%emt 0:01:12]} Bd7 {[%emt 0:00:31]} 32. Ra1 {[%emt 0:00:15]} Be6 {[%emt 0:00:32]} 33. Kg3 {[%emt 0:00:23]} Bd7 {[%emt 0:00:16]} 34. Rf2 {[%emt 0:01:23]} Bc8 {[%emt 0:00:43]} 35. Re1 {[%emt 0:01:41]} Bd7 {[%emt 0:00:15]} 36. Rfe2 {[%emt 0:00:14]} Kc6 {[%emt 0:00:43]} 37. Rf2 {[%emt 0:03:21]} Kb7 {[%emt 0:00:20]} 38. Rfe2 {[%emt 0:00:06]} Kc6 {[%emt 0:00:06]} 39. Rf2 {[%emt 0:00:35]} Kb7 {[%emt 0:01:11] A rather calm draw.   Weighted Error Value: White=0.03 (flawless) /Black=0.01 (flawless) .  OK:         	White=13    	Black=14} 1/2-1/2

[Event "FIDE Candidates 2024"]
[Site "Toronto"]
[Date "2024.04.15"]
[Round "10.2"]
[White "Nakamura, Hikaru"]
[Black "Abasov, Nijat"]
[Result "1-0"]
[ECO "B22"]
[WhiteElo "2789"]
[BlackElo "2632"]
[Annotator "TA"]
[PlyCount "115"]
[EventDate "2024.04.02"]
[EventType "tourn"]
[EventCountry "CAN"]
[SourceTitle "playchess.com"]
[Source "ChessBase"]
[SourceQuality "1"]
[TimeControl "40/7200:1800+30"]

{[%evp 58,115,0,0,0,-7,-7,-9,-4,-31,-20,-103,-71,-122,-37,-64,47,90,155,52,70,68,59,73,79,75,57,62,54,53,47,38,97,87,115,99,198,209,188,175,212,218,410,395,450,445,425,429,508,491,584,591,634,634,1196,1195,1953,1373,1855,1721]} 1. e4 {[%emt 0:00:06]} e5 {[%emt 0:00:04]} 2. Nf3 {[%emt 0:00:08]} Nf6 {[%emt 0:00:05]} 3. Nxe5 {[%emt 0:00:20]} d6 {[%emt 0:00:05]} 4. Nf3 {[%emt 0:00:04]} Nxe4 {[%emt 0:00:06]} 5. d3 {[%emt 0:00:03]} Nf6 {[%emt 0:00:08]} 6. d4 {[%emt 0:00:04]} d5 {[%emt 0:00:05]} 7. Bd3 {[%emt 0:00:03]} c5 {[%emt 0:00:13]} 8. c3 {[%emt 0:00:05]} c4 {[%emt 0:00:47] B22: Sicilian: 2 c3.} 9. Bc2 {[%emt 0:00:05]} Bd6 {[%emt 0:01:21]} 10. O-O {[%emt 0:00:08]} O-O {[%emt 0:00:08]} 11. h3 {[%emt 0:00:03]} Nc6 {[%emt 0:01:30]} 12. Bg5 {[%emt 0:00:31]} h6 {[%emt 0:07:31]} 13. Bh4 {[%emt 0:00:14]} b5 {[%emt 0:02:19]} 14. Re1 {[%emt 0:05:39]} a5 {[%emt 0:09:10]} 15. Ne5 {[%emt 0:07:34]} Ra6 {[%emt 0:01:00]} 16. Nd2 {[%emt 0:00:09]} Bc7 $146 {[%emt 0:07:38]} ({Predecessor:} 16... g5 17. Bg3 Ne7 18. Qf3 Kg7 19. Nf1 Bb7 20. Ne3 Ne4 21. Nxd5 f5 22. Nxe7 Qxe7 23. Bxe4 fxe4 24. Qe3 Bd5 {0-1 February,J (1733)-Jamieson,I (1982) Commonwealth-ch 2014 (4)}) 17. Qf3 {[%emt 0:27:56]} Ne7 {[%emt 0:01:44]} 18. b3 {[%emt 0:02:06]} a4 {[%emt 0:03:22]} 19. bxa4 {[%emt 0:00:44]} bxa4 {[%emt 0:00:07]} 20. Nf1 {[%emt 0:06:36]} a3 {[%emt 0:05:38]} 21. Rab1 {[%emt 0:10:30]} Re6 {[%emt 0:01:57]} 22. Ng4 {[%emt 0:05:27]} Nxg4 {[%emt 0:10:45]} 23. hxg4 {[%emt 0:00:42]} Qe8 {[%emt 0:06:54]} 24. Bg3 {[%emt 0:04:37]} Ba5 {[%emt 0:07:42]} 25. Rxe6 {[%emt 0:02:43]} Bxe6 {[%emt 0:01:12]} 26. Rb7 {[%emt 0:16:59]} Nc8 {[%emt 0:07:55]} 27. Bf4 {[%emt 0:07:14]} Qc6 {[%emt 0:02:55]} 28. Rb8 {[%emt 0:00:20]} Ne7 {[%emt 0:06:06]} 29. Rb1 {[%emt 0:06:40]} Qd7 {[%emt 0:05:20]} 30. g5 {[%emt 0:00:26]} Bg4 {[%emt 0:00:06]} 31. Qg3 {[%emt 0:00:12]} h5 {[%emt 0:00:10]} 32. Qe3 {[%emt 0:03:46]} Ng6 {[%emt 0:01:40]} 33. Bh2 {[%emt 0:00:16]} Re8 {[%emt 0:04:13]} 34. Qd2 {[%emt 0:00:02]} (34. Rb8 $11 {keeps the balance.} Rxb8 35. Bxb8) 34... Re2 $17 {[%emt 0:01:50]} 35. Rb8+ {[%emt 0:00:04]} Kh7 {[%emt 0:00:06]} (35... Nf8 $17 36. Qc1 Qe7 (36... Bxc3 $2 37. Qxa3 Re8 38. Ba4 $18)) 36. Qc1 $15 {[%emt 0:00:01]} Qe7 {[%emt 0:00:10]} (36... Bxc3 37. Bxg6+ Kxg6 38. Rb6+ (38. Qxc3 Qf5 $14) 38... Kh7 (38... Re6 $2 39. Rxe6+ Bxe6 40. Qxc3 $18) 39. Qxc3 $11) (36... h4 $15 37. Be5 Bf5 (37... Bxc3 38. Bxg6+ Kxg6 39. Rb6+ Kh7 40. Qxc3 $17) (37... Bc7 38. Rb7 $16)) 37. Be5 $14 {[%emt 0:01:57]} Qe6 {[%emt 0:08:58]} (37... Bxc3 $142 38. Bxg6+ Kxg6) 38. Ng3 {[%emt 0:01:31]} (38. Qxa3 $2 Rxc2 39. Qxa5 Nxe5 40. dxe5 Qxe5 41. g6+ Kxg6 $19) (38. Ne3 $16) 38... Rxe5 $14 {[%emt 0:00:43]} 39. dxe5 {[%emt 0:00:05]} Qxe5 {[%emt 0:00:04]} 40. Rb5 {[%emt 0:00:00]} Bxc3 {[%emt 0:00:00]} 41. Qe3 $1 {[%emt 0:03:49]} Qxe3 {[%emt 0:05:10]} 42. fxe3 {[%emt 0:00:14]} d4 $1 {[%emt 0:00:28]} 43. exd4 {[%emt 0:01:03]} Bxd4+ {[%emt 0:00:06]} 44. Kf1 {[%emt 0:00:02]} h4 {[%emt 0:16:42]} (44... Bb2 $1 $14) 45. Ne2 {[%emt 0:05:25]} Be3 {[%emt 0:00:04]} 46. Ra5 {[%emt 0:04:34]} Kg8 {[%emt 0:02:39]} (46... Bd2 $16 47. Rxa3 Bxg5) 47. Rxa3 $18 {[%emt 0:04:12]} Bxg5 {[%emt 0:00:06] [#]} 48. Ra8+ $1 {[%emt 0:00:15]} Nf8 {[%emt 0:00:18]} 49. a4 {[%emt 0:00:09]} f5 $2 {[%emt 0:03:39]} (49... Be3 {was worth a try.} 50. a5 g6) 50. Nd4 $18 {[%emt 0:04:46]} h3 {[%emt 0:00:08]} 51. gxh3 {[%emt 0:00:06]} (51. Bxf5 $2 {too greedy.} h2 52. Bxg4 h1=Q+ $19 (52... h1=R+ 53. Ke2 $16)) (51. Nxf5 $2 {is the wrong capture.} Bxf5 52. gxh3 (52. Bxf5 $2 h2 $19) 52... Bxc2 $19) 51... Bxh3+ {[%emt 0:00:02]} 52. Kf2 {[%emt 0:00:06]} Bh4+ {[%emt 0:00:04]} 53. Kf3 {[%emt 0:00:45]} Bg4+ {[%emt 0:00:27]} 54. Kg2 {[%emt 0:01:23]} f4 {[%emt 0:00:09]} 55. Bf5 {[%emt 0:01:37]} f3+ {[%emt 0:00:05]} 56. Kf1 {[%emt 0:00:03]} (56. Nxf3 Bxf5 57. Ra5 Be4 $11) 56... Bxf5 {[%emt 0:00:04]} 57. Nxf5 {[%emt 0:00:04]} Bg5 {[%emt 0:00:20]} 58. a5 {[%emt 0:00:09]} 1-0

[Event "FIDE Candidates 2024"]
[Site "Toronto"]
[Date "2024.04.15"]
[Round "10.3"]
[White "Nepomniachtchi, Ian"]
[Black "Gukesh D"]
[Result "1/2-1/2"]
[ECO "C70"]
[WhiteElo "2758"]
[BlackElo "2743"]
[Annotator "TA"]
[PlyCount "80"]
[EventDate "2024.04.02"]
[EventType "tourn"]
[EventCountry "CAN"]
[SourceTitle "playchess.com"]
[Source "ChessBase"]
[SourceQuality "1"]
[TimeControl "40/7200:1800+30"]

{[%evp 12,80,16,22,12,13,16,0,25,23,16,13,29,2,14,20,12,23,15,14,25,22,25,25,20,11,16,0,8,0,0,0,0,0,0,0,0,0,0,0,0,-10,0,0,0,0,0,0,0,0,0,0,0,0,0,0,0,0,0,0,0,0,0,0,0,0,0,0,0,0,0]} 1. e4 {[%emt 0:00:02]} e5 {[%emt 0:00:06]} 2. Nf3 {[%emt 0:00:06]} Nc6 {[%emt 0:00:06]} 3. Bb5 {[%emt 0:00:05]} a6 {[%emt 0:00:05]} 4. Ba4 {[%emt 0:00:04]} Nge7 {[%emt 0:00:06]} 5. d4 {[%emt 0:00:34]} exd4 {[%emt 0:00:19]} 6. Nxd4 {[%emt 0:00:24]} Nxd4 {[%emt 0:00:08]} 7. Qxd4 {[%emt 0:00:07]} Nc6 {[%emt 0:00:06]} 8. Qe3 {[%emt 0:01:29]} Be7 {[%emt 0:16:58]} 9. Nc3 {[%emt 0:02:45]} O-O {[%emt 0:08:44]} 10. Nd5 {[%emt 0:07:43]} b5 {[%emt 0:02:07]} 11. Bb3 {[%emt 0:00:55]} Na5 {[%emt 0:02:09]} 12. Qg3 {[%emt 0:15:11]} Bd6 {[%emt 0:02:16]} 13. Bf4 {[%emt 0:03:29]} Bxf4 {[%emt 0:00:17]} 14. Qxf4 {[%emt 0:00:28]} d6 {[%emt 0:01:25]} 15. O-O {[%emt 0:03:01][%cal Bh1f1,Bf1d1,Bd1d3,Bd3g3][%mdl 32]} Be6 {[%emt 0:11:36]} 16. Rfd1 {[%emt 0:01:04]} Re8 {[%emt 0:02:10]} 17. h3 {[%emt 0:02:03]} h6 {[%emt 0:06:38]} 18. Rd3 {[%emt 0:04:09] The position is equal.} c5 {[%emt 0:02:48] [#] And now ...c4 would win.} (18... Nxb3 {simplifies} 19. cxb3 Bxd5 20. Rxd5 Re6) 19. Rg3 {[%emt 0:01:34]} Kh8 {[%emt 0:07:58] Threatens to win with ...c4.} 20. c3 {[%emt 0:02:12]} Nxb3 {[%emt 0:05:36]} 21. axb3 {[%emt 0:00:11]} Bxd5 {[%emt 0:00:49]} 22. exd5 {[%emt 0:00:07]} Qd7 {[%emt 0:01:18]} 23. b4 {[%emt 0:05:57]} cxb4 {[%emt 0:03:11]} 24. Qxb4 {[%emt 0:01:36]} Re5 {[%emt 0:00:54]} 25. Qd4 {[%emt 0:00:22] [#] Black must now prevent f4.} Qa7 {[%emt 0:00:39]} 26. Rd3 {[%emt 0:00:42]} Re2 {[%emt 0:02:50][%cal Be5e2,Be2c2,Bc2c3][%mdl 32]} 27. Qxa7 {[%emt 0:04:10]} Rxa7 $11 {[%emt 0:00:01][%mdl 4096] Endgame. KRR-KRR} 28. b4 {[%emt 0:00:11]} Rc2 {[%emt 0:00:45]} 29. Re1 {[%emt 0:03:26]} Kh7 {[%emt 0:01:04]} 30. Re8 {[%emt 0:00:21]} Rc7 {[%emt 0:02:04]} 31. Ra8 {[%emt 0:00:10]} R7xc3 {[%emt 0:00:06]} 32. Rxc3 {[%emt 0:00:04]} Rxc3 {[%emt 0:00:04]} 33. Rxa6 {[%emt 0:00:03] KR-KR} Rc4 {[%emt 0:00:08]} 34. Rxd6 {[%emt 0:00:04]} Rxb4 {[%emt 0:00:04]} 35. Rb6 {[%emt 0:00:06]} Rb1+ {[%emt 0:00:11]} 36. Kh2 {[%emt 0:00:04]} b4 {[%emt 0:00:06]} 37. d6 {[%emt 0:00:06]} Rd1 {[%emt 0:00:04]} 38. Rxb4 {[%emt 0:00:03]} Rxd6 {[%emt 0:00:03]} 39. Ra4 {[%emt 0:00:06]} h5 {[%emt 0:00:04]} 40. h4 {[%emt 0:00:00]} g6 {[%emt 0:00:03] An even fight not without its subleties.   Weighted Error Value: White=0.04 (flawless) /Black=0.02 (flawless) .  Inaccurate:     	White=1     	---        OK:         	White=12    	Black=19} 1/2-1/2